[Event "Titled Tuesday Blitz March 08 Late 2022"]
[White "Andersson, Bjorn 1971"]
[Black "Domingo Nunez, Alejandro"]
[WhiteFideId "1702114"]
[BlackFideId "22245561"]
[WhiteElo "2207"]
[BlackElo "2215"]
[Result "0-1"]
[Round "06"]
[TimeControl "180+1"]
[Date "2022.03.09"]
[WhiteClock "0:00:03"]
[BlackClock "0:00:03"]

1. e4 {[%clk 0:03:00]}  g6 {[%clk 0:03:00]} 2. d4 {[%clk 0:02:57]}  Bg7 {[%clk 0:03:00]} 3. Nf3 {[%clk 0:02:58]}  c6 {[%clk 0:03:01]} 4. Nc3 {[%clk 0:02:58]}  d5 {[%clk 0:03:01]} 5. e5 {[%clk 0:02:58]}  f6 {[%clk 0:03:01]} 6. Be2 {[%clk 0:02:53]}  Bg4 {[%clk 0:02:59]} 7. Bf4 {[%clk 0:02:49]}  Bxf3 {[%clk 0:02:54]} 8. Bxf3 {[%clk 0:02:49]}  fxe5 {[%clk 0:02:54]} 9. Bxe5 {[%clk 0:02:47]}  Bxe5 {[%clk 0:02:54]} 10. dxe5 {[%clk 0:02:47]}  e6 {[%clk 0:02:53]} 11. O-O {[%clk 0:02:46]}  Nd7 {[%clk 0:02:54]} 12. Re1 {[%clk 0:02:45]}  Nh6 {[%clk 0:02:52]} 13. Qd2 {[%clk 0:02:41]}  Nf7 {[%clk 0:02:52]} 14. Bg4 {[%clk 0:02:37]}  Qe7 {[%clk 0:02:51]} 15. f4 {[%clk 0:02:36]}  O-O-O {[%clk 0:02:50]} 16. Ne2 {[%clk 0:02:33]}  h5 {[%clk 0:02:38]} 17. Bh3 {[%clk 0:02:32]}  g5 {[%clk 0:02:38]} 18. fxg5 {[%clk 0:02:25]}  Nxg5 {[%clk 0:02:36]} 19. Nf4 {[%clk 0:02:24]}  Rhg8 {[%clk 0:02:33]} 20. Kh1 {[%clk 0:02:18]}  Rdf8 {[%clk 0:02:29]} 21. c4 {[%clk 0:02:01]}  Kb8 {[%clk 0:02:16]} 22. cxd5 {[%clk 0:01:58]}  cxd5 {[%clk 0:02:17]} 23. Rac1 {[%clk 0:01:36]}  Nc5 {[%clk 0:01:20]} 24. Rxc5 {[%clk 0:00:56]}  Qxc5 {[%clk 0:01:06]} 25. Nxe6 {[%clk 0:00:55]}  Nxe6 {[%clk 0:00:21]} 26. Bxe6 {[%clk 0:00:54]}  Rg6 {[%clk 0:00:16]} 27. Qxd5 {[%clk 0:00:47]}  Qxd5 {[%clk 0:00:15]} 28. Bxd5 {[%clk 0:00:47]}  Rg5 {[%clk 0:00:16]} 29. Bf3 {[%clk 0:00:44]}  h4 {[%clk 0:00:15]} 30. h3 {[%clk 0:00:43]}  Kc7 {[%clk 0:00:13]} 31. e6 {[%clk 0:00:43]}  Re8 {[%clk 0:00:11]} 32. Bg4 {[%clk 0:00:42]}  Re7 {[%clk 0:00:11]} 33. Rc1+ {[%clk 0:00:36]}  Kd6 {[%clk 0:00:10]} 34. Rc8 {[%clk 0:00:35]}  Rc5 {[%clk 0:00:08]} 35. Rd8+ {[%clk 0:00:35]}  Ke5 {[%clk 0:00:08]} 36. Rd7 {[%clk 0:00:31]}  Rxd7 {[%clk 0:00:07]} 37. exd7 {[%clk 0:00:31]}  Rd5 {[%clk 0:00:08]} 38. b4 {[%clk 0:00:23]}  Kf6 {[%clk 0:00:04]} 39. g3 {[%clk 0:00:20]}  hxg3 {[%clk 0:00:04]} 40. Kg2 {[%clk 0:00:20]}  Rd3 {[%clk 0:00:04]} 41. h4 {[%clk 0:00:20]}  Ke7 {[%clk 0:00:04]} 42. Bh3 {[%clk 0:00:19]}  b6 {[%clk 0:00:03]} 43. h5 {[%clk 0:00:17]}  Rd5 {[%clk 0:00:01]} 44. Bg4 {[%clk 0:00:16]}  Rd3 {[%clk 0:00:02]} 45. h6 {[%clk 0:00:13]}  Rd6 {[%clk 0:00:03]} 46. h7 {[%clk 0:00:13]}  Rh6 {[%clk 0:00:03]} 47. Bf5 {[%clk 0:00:13]}  a5 {[%clk 0:00:03]} 48. bxa5 {[%clk 0:00:12]}  bxa5 {[%clk 0:00:04]} 49. Kxg3 {[%clk 0:00:12]}  Rh1 {[%clk 0:00:03]} 50. Kg4 {[%clk 0:00:11]}  a4 {[%clk 0:00:03]} 51. Kg5 {[%clk 0:00:11]}  Kd8 {[%clk 0:00:03]} 52. Bg4 {[%clk 0:00:08]}  Rxh7 {[%clk 0:00:03]} 53. Kf4 {[%clk 0:00:08]}  Rh2 {[%clk 0:00:02]} 54. Be6 {[%clk 0:00:07]}  Re2 {[%clk 0:00:03]} 55. Kf5 {[%clk 0:00:05]}  Rd2 {[%clk 0:00:03]} 56. Ke5 {[%clk 0:00:03]}  Kc7 {[%clk 0:00:03]} 57. Ke4 {[%clk 0:00:03]}  Kd8 {[%clk 0:00:04]} 58. Ke5 {[%clk 0:00:03]}  Rd1 {[%clk 0:00:04]} 59. Ke4 {[%clk 0:00:03]}  Ke7 {[%clk 0:00:03]} 0-1


[Site "https://www.chess.com"]

[Event "Titled Tuesday Blitz March 08 Late 2022"]
[White "Antonio, Jorge Carlos"]
[Black "Brunner, Nicolas"]
[WhiteFideId "113190"]
[BlackFideId "620246"]
[WhiteElo "2247"]
[BlackElo "2372"]
[Result "0-1"]
[Round "06"]
[TimeControl "180+1"]
[Date "2022.03.09"]
[WhiteClock "0:02:02"]
[BlackClock "0:01:53"]

1. d4 {[%clk 0:02:51]}  d5 {[%clk 0:02:59]} 2. Nf3 {[%clk 0:02:48]}  Nf6 {[%clk 0:02:58]} 3. e3 {[%clk 0:02:47]}  c6 {[%clk 0:02:56]} 4. Bd3 {[%clk 0:02:47]}  Bg4 {[%clk 0:02:55]} 5. h3 {[%clk 0:02:46]}  Bh5 {[%clk 0:02:55]} 6. g4 {[%clk 0:02:46]}  Bg6 {[%clk 0:02:55]} 7. Ne5 {[%clk 0:02:45]}  Bxd3 {[%clk 0:02:54]} 8. Qxd3 {[%clk 0:02:45]}  Nbd7 {[%clk 0:02:54]} 9. f4 {[%clk 0:02:45]}  Ne4 {[%clk 0:02:45]} 10. Nd2 {[%clk 0:02:43]}  Nxd2 {[%clk 0:02:45]} 11. Bxd2 {[%clk 0:02:42]}  e6 {[%clk 0:02:45]} 12. g5 {[%clk 0:02:38]}  h6 {[%clk 0:02:29]} 13. h4 {[%clk 0:02:35]}  hxg5 {[%clk 0:02:24]} 14. Nxd7 {[%clk 0:02:31]}  Kxd7 {[%clk 0:02:16]} 15. fxg5 {[%clk 0:02:28]}  Qxg5 {[%clk 0:02:15]} 16. hxg5 {[%clk 0:02:27]}  Rxh1+ {[%clk 0:02:15]} 17. Ke2 {[%clk 0:02:22]}  Rxa1 {[%clk 0:02:14]} 18. g6 {[%clk 0:02:17]}  f6 {[%clk 0:02:11]} 19. c4 {[%clk 0:02:12]}  Bd6 {[%clk 0:01:58]} 20. c5 {[%clk 0:02:11]}  Bc7 {[%clk 0:01:54]} 21. a3 {[%clk 0:02:05]}  Rh8 {[%clk 0:01:54]} 22. e4 {[%clk 0:02:02]}  Rh2+ {[%clk 0:01:53]} 0-1


[Site "https://www.chess.com"]

[Event "Titled Tuesday Blitz March 08 Late 2022"]
[White "Bacrot, Etienne"]
[Black "Goltseva, Ekaterina"]
[WhiteFideId "605506"]
[BlackFideId "24173770"]
[WhiteElo "2673"]
[BlackElo "2140"]
[Result "0-1"]
[Round "06"]
[TimeControl "180+1"]
[Date "2022.03.08"]
[WhiteClock "0:00:03"]
[BlackClock "0:00:10"]

1. e4 {[%clk 0:02:56]}  e5 {[%clk 0:02:59]} 2. Nf3 {[%clk 0:02:56]}  Nc6 {[%clk 0:03:00]} 3. Bc4 {[%clk 0:02:56]}  Nf6 {[%clk 0:03:00]} 4. d3 {[%clk 0:02:56]}  Be7 {[%clk 0:02:59]} 5. O-O {[%clk 0:02:56]}  O-O {[%clk 0:03:00]} 6. Re1 {[%clk 0:02:55]}  d6 {[%clk 0:02:59]} 7. h3 {[%clk 0:02:55]}  Na5 {[%clk 0:02:56]} 8. Nc3 {[%clk 0:02:52]}  Nxc4 {[%clk 0:02:47]} 9. dxc4 {[%clk 0:02:53]}  Be6 {[%clk 0:02:48]} 10. Qd3 {[%clk 0:02:53]}  Nh5 {[%clk 0:02:45]} 11. b3 {[%clk 0:02:50]}  f5 {[%clk 0:02:43]} 12. exf5 {[%clk 0:02:46]}  Bxf5 {[%clk 0:02:42]} 13. Qd5+ {[%clk 0:02:42]}  Kh8 {[%clk 0:02:43]} 14. Qxb7 {[%clk 0:02:42]}  Bxc2 {[%clk 0:02:33]} 15. Nd5 {[%clk 0:02:39]}  Rc8 {[%clk 0:02:20]} 16. Ba3 {[%clk 0:02:33]}  Nf4 {[%clk 0:02:10]} 17. Nxe7 {[%clk 0:02:21]}  Qxe7 {[%clk 0:02:05]} 18. Nxe5 {[%clk 0:02:17]}  Qf6 {[%clk 0:01:36]} 19. Ng4 {[%clk 0:01:34]}  Qg6 {[%clk 0:01:25]} 20. Re3 {[%clk 0:01:25]}  h5 {[%clk 0:01:18]} 21. Nh2 {[%clk 0:01:17]}  c6 {[%clk 0:01:09]} 22. g4 {[%clk 0:01:13]}  Qf6 {[%clk 0:00:41]} 23. Rf1 {[%clk 0:01:02]}  Bd3 {[%clk 0:00:40]} 24. Rxd3 {[%clk 0:00:33]}  Nxd3 {[%clk 0:00:39]} 25. gxh5 {[%clk 0:00:31]}  Nxf2 {[%clk 0:00:34]} 26. Qd7 {[%clk 0:00:23]}  Qg5+ {[%clk 0:00:28]} 27. Ng4 {[%clk 0:00:20]}  Nxh3+ {[%clk 0:00:27]} 28. Kh2 {[%clk 0:00:18]}  Nf4 {[%clk 0:00:22]} 29. Kg3 {[%clk 0:00:09]}  Nxh5+ {[%clk 0:00:21]} 30. Kg2 {[%clk 0:00:10]}  Nf6 {[%clk 0:00:20]} 31. Rh1+ {[%clk 0:00:09]}  Nh7 {[%clk 0:00:11]} 32. Bxd6 {[%clk 0:00:08]}  Rcd8 {[%clk 0:00:10]} 33. Qe6 {[%clk 0:00:03]}  Qd2+ {[%clk 0:00:10]} 34. Kg3 {[%clk 0:00:03]}  Qxd6+ {[%clk 0:00:11]} 35. Qxd6 {[%clk 0:00:04]}  Rxd6 {[%clk 0:00:11]} 36. Ne5 {[%clk 0:00:04]}  Re6 {[%clk 0:00:12]} 37. Nd7 {[%clk 0:00:04]}  Rd8 {[%clk 0:00:11]} 38. Nc5 {[%clk 0:00:04]}  Rg6+ {[%clk 0:00:12]} 39. Kf4 {[%clk 0:00:04]}  Kg8 {[%clk 0:00:12]} 40. Kf5 {[%clk 0:00:04]}  Rf6+ {[%clk 0:00:13]} 41. Ke5 {[%clk 0:00:05]}  Ng5 {[%clk 0:00:13]} 42. Na6 {[%clk 0:00:04]}  Re8+ {[%clk 0:00:12]} 43. Kd4 {[%clk 0:00:04]}  c5+ {[%clk 0:00:13]} 44. Nxc5 {[%clk 0:00:03]}  Ne6+ {[%clk 0:00:12]} 45. Nxe6 {[%clk 0:00:03]}  Rfxe6 {[%clk 0:00:13]} 46. c5 {[%clk 0:00:03]}  Rc6 {[%clk 0:00:13]} 47. b4 {[%clk 0:00:03]}  a5 {[%clk 0:00:13]} 48. b5 {[%clk 0:00:03]}  Rd8+ {[%clk 0:00:13]} 49. Kc4 {[%clk 0:00:03]}  Rc7 {[%clk 0:00:13]} 50. c6 {[%clk 0:00:04]}  Rf7 {[%clk 0:00:12]} 51. Kc5 {[%clk 0:00:04]}  Rf5+ {[%clk 0:00:11]} 52. Kb6 {[%clk 0:00:05]}  Rb8+ {[%clk 0:00:11]} 53. Ka7 {[%clk 0:00:05]}  Rbxb5 {[%clk 0:00:12]} 54. c7 {[%clk 0:00:06]}  Rfc5 {[%clk 0:00:12]} 55. Rh5 {[%clk 0:00:02]}  Rxc7+ {[%clk 0:00:11]} 56. Ka8 {[%clk 0:00:03]}  Rxh5 {[%clk 0:00:11]} 57. a4 {[%clk 0:00:03]}  Rc1 {[%clk 0:00:10]} 0-1


[Site "https://www.chess.com"]

[Event "Titled Tuesday Blitz March 08 Late 2022"]
[White "Baker, Chris W"]
[Black "Chernomordik, Pavel"]
[WhiteFideId "401676"]
[BlackFideId "2804530"]
[WhiteElo "2272"]
[BlackElo "2249"]
[Result "0-1"]
[Round "06"]
[TimeControl "180+1"]
[Date "2022.03.09"]
[WhiteClock "0:01:31"]
[BlackClock "0:01:22"]

1. c4 {[%clk 0:03:00]}  g6 {[%clk 0:03:00]} 2. Nf3 {[%clk 0:03:00]}  Bg7 {[%clk 0:02:59]} 3. g3 {[%clk 0:03:00]}  d6 {[%clk 0:02:59]} 4. Bg2 {[%clk 0:03:01]}  e5 {[%clk 0:02:55]} 5. d3 {[%clk 0:03:00]}  Nc6 {[%clk 0:02:54]} 6. O-O {[%clk 0:03:00]}  h6 {[%clk 0:02:54]} 7. Nc3 {[%clk 0:02:59]}  Be6 {[%clk 0:02:53]} 8. Rb1 {[%clk 0:02:53]}  Nge7 {[%clk 0:02:53]} 9. b4 {[%clk 0:02:51]}  Qd7 {[%clk 0:02:53]} 10. b5 {[%clk 0:02:51]}  Nd8 {[%clk 0:02:52]} 11. Bb2 {[%clk 0:02:47]}  Bh3 {[%clk 0:02:47]} 12. Nd5 {[%clk 0:02:38]}  Bxg2 {[%clk 0:02:43]} 13. Kxg2 {[%clk 0:02:37]}  O-O {[%clk 0:02:39]} 14. a4 {[%clk 0:02:34]}  Ne6 {[%clk 0:02:34]} 15. Nxe7+ {[%clk 0:02:20]}  Qxe7 {[%clk 0:02:33]} 16. Nd2 {[%clk 0:02:19]}  f5 {[%clk 0:02:30]} 17. Ba3 {[%clk 0:02:09]}  Qf7 {[%clk 0:02:23]} 18. a5 {[%clk 0:02:03]}  Rad8 {[%clk 0:02:17]} 19. e3 {[%clk 0:01:45]}  f4 {[%clk 0:02:10]} 20. Qf3 {[%clk 0:01:41]}  Ng5 {[%clk 0:01:51]} 21. Qd5 {[%clk 0:01:38]}  f3+ {[%clk 0:01:29]} 22. Nxf3 {[%clk 0:01:31]}  Nxf3 {[%clk 0:01:22]} 0-1


[Site "https://www.chess.com"]

[Event "Titled Tuesday Blitz March 08 Late 2022"]
[White "Bibasa, Bob"]
[Black "Rastbod, Ali"]
[WhiteFideId "10000240"]
[BlackFideId "12567477"]
[WhiteElo "2056"]
[BlackElo "2200"]
[Result "0-1"]
[Round "06"]
[TimeControl "180+1"]
[Date "2022.03.09"]
[WhiteClock "0:00:01"]
[BlackClock "0:00:06"]

1. e4 {[%clk 0:03:00]}  e6 {[%clk 0:03:00]} 2. d4 {[%clk 0:03:00]}  d5 {[%clk 0:03:00]} 3. Nc3 {[%clk 0:03:01]}  Bb4 {[%clk 0:02:59]} 4. Ne2 {[%clk 0:03:01]}  Nc6 {[%clk 0:02:56]} 5. e5 {[%clk 0:02:56]}  f6 {[%clk 0:02:56]} 6. a3 {[%clk 0:02:56]}  Bxc3+ {[%clk 0:02:54]} 7. Nxc3 {[%clk 0:02:56]}  fxe5 {[%clk 0:02:55]} 8. dxe5 {[%clk 0:02:55]}  Nxe5 {[%clk 0:02:56]} 9. Bd3 {[%clk 0:02:50]}  Nxd3+ {[%clk 0:02:53]} 10. Qxd3 {[%clk 0:02:50]}  Nf6 {[%clk 0:02:54]} 11. O-O {[%clk 0:02:50]}  O-O {[%clk 0:02:54]} 12. Bf4 {[%clk 0:02:50]}  c6 {[%clk 0:02:54]} 13. Be5 {[%clk 0:02:49]}  Ng4 {[%clk 0:02:52]} 14. Rae1 {[%clk 0:02:46]}  Rf5 {[%clk 0:02:44]} 15. Qg3 {[%clk 0:02:36]}  Qg5 {[%clk 0:02:38]} 16. f4 {[%clk 0:02:35]}  Qg6 {[%clk 0:02:35]} 17. Bc7 {[%clk 0:02:21]}  Qf7 {[%clk 0:02:08]} 18. Bd6 {[%clk 0:02:18]}  Nf6 {[%clk 0:02:03]} 19. Qf3 {[%clk 0:01:57]}  h5 {[%clk 0:01:42]} 20. h3 {[%clk 0:01:49]}  h4 {[%clk 0:01:41]} 21. Be5 {[%clk 0:01:40]}  b6 {[%clk 0:01:39]} 22. Rf2 {[%clk 0:01:13]}  c5 {[%clk 0:01:36]} 23. Nb5 {[%clk 0:01:11]}  Ne8 {[%clk 0:01:22]} 24. Qg4 {[%clk 0:00:58]}  Bd7 {[%clk 0:01:14]} 25. Nd6 {[%clk 0:00:57]}  Nxd6 {[%clk 0:01:14]} 26. Bxd6 {[%clk 0:00:57]}  Qh5 {[%clk 0:01:15]} 27. Be5 {[%clk 0:00:51]}  g6 {[%clk 0:01:03]} 28. Rd2 {[%clk 0:00:34]}  Bc6 {[%clk 0:01:01]} 29. b4 {[%clk 0:00:23]}  d4 {[%clk 0:00:40]} 30. bxc5 {[%clk 0:00:19]}  bxc5 {[%clk 0:00:41]} 31. c3 {[%clk 0:00:16]}  dxc3 {[%clk 0:00:30]} 32. Rd6 {[%clk 0:00:15]}  Bd5 {[%clk 0:00:26]} 33. Rc1 {[%clk 0:00:12]}  c4 {[%clk 0:00:17]} 34. Rxc3 {[%clk 0:00:11]}  Raf8 {[%clk 0:00:17]} 35. Kh2 {[%clk 0:00:10]}  Qxg4 {[%clk 0:00:14]} 36. hxg4 {[%clk 0:00:10]}  Rxf4 {[%clk 0:00:14]} 37. Bxf4 {[%clk 0:00:10]}  Rxf4 {[%clk 0:00:15]} 38. Kh3 {[%clk 0:00:09]}  g5 {[%clk 0:00:15]} 39. Re3 {[%clk 0:00:08]}  Kg7 {[%clk 0:00:13]} 40. Rd7+ {[%clk 0:00:08]}  Kf6 {[%clk 0:00:14]} 41. Rxa7 {[%clk 0:00:07]}  Rf1 {[%clk 0:00:14]} 42. Kh2 {[%clk 0:00:07]}  Rf2 {[%clk 0:00:15]} 43. Ra5 {[%clk 0:00:02]}  Rxg2+ {[%clk 0:00:14]} 44. Kh3 {[%clk 0:00:03]}  Ra2 {[%clk 0:00:09]} 45. Rc3 {[%clk 0:00:02]}  Bg2+ {[%clk 0:00:07]} 46. Kh2 {[%clk 0:00:02]}  Bf1+ {[%clk 0:00:08]} 47. Kg1 {[%clk 0:00:02]}  Bd3 {[%clk 0:00:08]} 48. Rc5 {[%clk 0:00:01]}  e5 {[%clk 0:00:06]} 49. Rc6+ {[%clk 0:00:01]}  Ke7 {[%clk 0:00:06]} 0-1


[Site "https://www.chess.com"]

[Event "Titled Tuesday Blitz March 08 Late 2022"]
[White "Bryakin, Mikhail"]
[Black "Bellahcene, Bilel"]
[WhiteFideId "4165314"]
[BlackFideId "696358"]
[WhiteElo "2417"]
[BlackElo "2562"]
[Result "0-1"]
[Round "06"]
[TimeControl "180+1"]
[Date "2022.03.08"]
[WhiteClock "0:00:11"]
[BlackClock "0:00:15"]

1. e4 {[%clk 0:02:59]}  Nf6 {[%clk 0:03:00]} 2. e5 {[%clk 0:02:55]}  Nd5 {[%clk 0:03:00]} 3. Nf3 {[%clk 0:02:54]}  d6 {[%clk 0:03:00]} 4. d4 {[%clk 0:02:52]}  dxe5 {[%clk 0:03:00]} 5. dxe5 {[%clk 0:02:52]}  Nc6 {[%clk 0:02:49]} 6. Be2 {[%clk 0:02:47]}  Bf5 {[%clk 0:02:46]} 7. a3 {[%clk 0:02:46]}  e6 {[%clk 0:02:45]} 8. c4 {[%clk 0:02:45]}  Nb6 {[%clk 0:02:44]} 9. O-O {[%clk 0:02:41]}  Be7 {[%clk 0:02:41]} 10. b4 {[%clk 0:02:39]}  Be4 {[%clk 0:02:29]} 11. Bb2 {[%clk 0:02:36]}  Bxf3 {[%clk 0:02:27]} 12. gxf3 {[%clk 0:02:29]}  Bg5 {[%clk 0:02:18]} 13. Nc3 {[%clk 0:02:25]}  Qe7 {[%clk 0:02:07]} 14. c5 {[%clk 0:02:20]}  Nd7 {[%clk 0:02:05]} 15. Bb5 {[%clk 0:02:15]}  Bf4 {[%clk 0:02:03]} 16. Ne2 {[%clk 0:02:12]}  Bxe5 {[%clk 0:01:52]} 17. Bxc6 {[%clk 0:02:01]}  bxc6 {[%clk 0:01:49]} 18. Bxe5 {[%clk 0:01:59]}  Nxe5 {[%clk 0:01:50]} 19. Ng3 {[%clk 0:02:00]}  Qf6 {[%clk 0:01:49]} 20. Kg2 {[%clk 0:02:00]}  O-O {[%clk 0:01:47]} 21. Qe2 {[%clk 0:01:58]}  Ng6 {[%clk 0:01:45]} 22. Qe4 {[%clk 0:01:53]}  a5 {[%clk 0:01:24]} 23. Qxc6 {[%clk 0:01:49]}  axb4 {[%clk 0:01:23]} 24. a4 {[%clk 0:01:45]}  b3 {[%clk 0:01:22]} 25. Rfb1 {[%clk 0:01:27]}  Nf4+ {[%clk 0:00:47]} 26. Kh1 {[%clk 0:01:21]}  Rfb8 {[%clk 0:00:38]} 27. a5 {[%clk 0:00:48]}  h5 {[%clk 0:00:37]} 28. Ra4 {[%clk 0:00:45]}  h4 {[%clk 0:00:33]} 29. Ne4 {[%clk 0:00:44]}  Qg6 {[%clk 0:00:30]} 30. Rg1 {[%clk 0:00:44]}  Qxg1+ {[%clk 0:00:24]} 31. Kxg1 {[%clk 0:00:41]}  b2 {[%clk 0:00:24]} 32. Nf6+ {[%clk 0:00:11]}  gxf6 {[%clk 0:00:23]} 33. Rxf4 {[%clk 0:00:11]}  h3 {[%clk 0:00:15]} 0-1


[Site "https://www.chess.com"]

[Event "Titled Tuesday Blitz March 08 Late 2022"]
[White "Debray, Christopher"]
[Black "Kozina, Anastasia"]
[WhiteFideId "630810"]
[BlackFideId "24174017"]
[WhiteElo "2393"]
[BlackElo "1993"]
[Result "1-0"]
[Round "06"]
[TimeControl "180+1"]
[Date "2022.03.09"]
[WhiteClock "0:00:02"]
[BlackClock "0:00:17"]

1. d4 {[%clk 0:03:00]}  e6 {[%clk 0:03:00]} 2. c4 {[%clk 0:03:01]}  Nf6 {[%clk 0:03:00]} 3. Nf3 {[%clk 0:03:01]}  Bb4+ {[%clk 0:02:58]} 4. Nbd2 {[%clk 0:03:00]}  O-O {[%clk 0:02:57]} 5. g3 {[%clk 0:03:01]}  d5 {[%clk 0:02:55]} 6. Bg2 {[%clk 0:03:01]}  dxc4 {[%clk 0:02:55]} 7. Qc2 {[%clk 0:03:00]}  a6 {[%clk 0:02:50]} 8. Qxc4 {[%clk 0:02:59]}  Be7 {[%clk 0:02:50]} 9. Qc2 {[%clk 0:02:58]}  Nbd7 {[%clk 0:02:49]} 10. O-O {[%clk 0:02:56]}  c5 {[%clk 0:02:48]} 11. Rd1 {[%clk 0:02:49]}  Qc7 {[%clk 0:02:45]} 12. b4 {[%clk 0:02:46]}  b6 {[%clk 0:02:32]} 13. bxc5 {[%clk 0:02:27]}  bxc5 {[%clk 0:02:31]} 14. Ba3 {[%clk 0:02:27]}  Bb7 {[%clk 0:02:23]} 15. Nb3 {[%clk 0:02:17]}  Rac8 {[%clk 0:02:12]} 16. dxc5 {[%clk 0:02:12]}  Nxc5 {[%clk 0:02:06]} 17. Rac1 {[%clk 0:02:07]}  Nfd7 {[%clk 0:01:33]} 18. Rxd7 {[%clk 0:01:57]}  Qxd7 {[%clk 0:01:31]} 19. Bxc5 {[%clk 0:01:54]}  Bxc5 {[%clk 0:01:25]} 20. Nxc5 {[%clk 0:01:55]}  Qb5 {[%clk 0:01:24]} 21. Ng5 {[%clk 0:01:36]}  g6 {[%clk 0:01:15]} 22. Bxb7 {[%clk 0:01:36]}  Rc7 {[%clk 0:01:07]} 23. Bf3 {[%clk 0:01:30]}  Rfc8 {[%clk 0:00:57]} 24. Nge4 {[%clk 0:01:25]}  Qb6 {[%clk 0:00:52]} 25. Qd3 {[%clk 0:01:10]}  f5 {[%clk 0:00:45]} 26. Nf6+ {[%clk 0:01:09]}  Kf7 {[%clk 0:00:44]} 27. Nfd7 {[%clk 0:01:07]}  Qb2 {[%clk 0:00:40]} 28. Rc2 {[%clk 0:00:59]}  Qa1+ {[%clk 0:00:40]} 29. Kg2 {[%clk 0:00:59]}  g5 {[%clk 0:00:22]} 30. Qe3 {[%clk 0:00:58]}  g4 {[%clk 0:00:22]} 31. Qxe6+ {[%clk 0:00:56]}  Kg7 {[%clk 0:00:20]} 32. Qe7+ {[%clk 0:00:55]}  Kg6 {[%clk 0:00:19]} 33. Ne5+ {[%clk 0:00:52]}  Kh5 {[%clk 0:00:19]} 34. Bxg4+ {[%clk 0:00:02]}  fxg4 {[%clk 0:00:17]} 35. Qh4# {[%clk 0:00:02]} 1-0


[Site "https://www.chess.com"]

[Event "Titled Tuesday Blitz March 08 Late 2022"]
[White "Denishev, Marat"]
[Black "Babazada, Khazar"]
[WhiteFideId "24131563"]
[BlackFideId "13413554"]
[WhiteElo "2197"]
[BlackElo "2418"]
[Result "0-1"]
[Round "06"]
[TimeControl "180+1"]
[Date "2022.03.08"]
[WhiteClock "0:00:02"]
[BlackClock "0:00:14"]

1. Nf3 {[%clk 0:02:37]}  Nf6 {[%clk 0:02:48]} 2. c4 {[%clk 0:02:34]}  g6 {[%clk 0:02:48]} 3. g3 {[%clk 0:02:34]}  Bg7 {[%clk 0:02:49]} 4. Bg2 {[%clk 0:02:35]}  O-O {[%clk 0:02:49]} 5. O-O {[%clk 0:02:36]}  d6 {[%clk 0:02:49]} 6. d4 {[%clk 0:02:36]}  Nbd7 {[%clk 0:02:50]} 7. Nc3 {[%clk 0:02:36]}  a6 {[%clk 0:02:50]} 8. e4 {[%clk 0:02:36]}  e5 {[%clk 0:02:49]} 9. Re1 {[%clk 0:02:33]}  Re8 {[%clk 0:02:46]} 10. h3 {[%clk 0:02:29]}  Rb8 {[%clk 0:02:46]} 11. Be3 {[%clk 0:02:19]}  b5 {[%clk 0:02:38]} 12. cxb5 {[%clk 0:02:07]}  axb5 {[%clk 0:02:39]} 13. d5 {[%clk 0:02:07]}  b4 {[%clk 0:02:38]} 14. Na4 {[%clk 0:02:01]}  Nxe4 {[%clk 0:02:35]} 15. Qc2 {[%clk 0:01:58]}  Nef6 {[%clk 0:02:26]} 16. Rac1 {[%clk 0:01:35]}  Nxd5 {[%clk 0:02:03]} 17. Bg5 {[%clk 0:01:34]}  Bf6 {[%clk 0:02:00]} 18. Bh6 {[%clk 0:01:06]}  Bb7 {[%clk 0:01:53]} 19. Nd2 {[%clk 0:00:58]}  Bg7 {[%clk 0:01:33]} 20. Bxg7 {[%clk 0:00:56]}  Kxg7 {[%clk 0:01:34]} 21. h4 {[%clk 0:00:40]}  N7f6 {[%clk 0:01:31]} 22. Ne4 {[%clk 0:00:30]}  Qd7 {[%clk 0:01:19]} 23. Ng5 {[%clk 0:00:19]}  h6 {[%clk 0:01:15]} 24. Bh3 {[%clk 0:00:18]}  Qb5 {[%clk 0:00:47]} 25. Ne4 {[%clk 0:00:18]}  Nxe4 {[%clk 0:00:41]} 26. Rxe4 {[%clk 0:00:19]}  Nf6 {[%clk 0:00:35]} 27. Re3 {[%clk 0:00:15]}  c5 {[%clk 0:00:23]} 28. b3 {[%clk 0:00:13]}  Qc6 {[%clk 0:00:22]} 29. f3 {[%clk 0:00:13]}  e4 {[%clk 0:00:22]} 30. Bg2 {[%clk 0:00:12]}  Rbd8 {[%clk 0:00:17]} 31. Nb2 {[%clk 0:00:11]}  Qd7 {[%clk 0:00:16]} 32. Nc4 {[%clk 0:00:11]}  exf3 {[%clk 0:00:15]} 33. Bxf3 {[%clk 0:00:01]}  Rxe3 {[%clk 0:00:14]} 34. Bxb7 {[%clk 0:00:02]}  Rc3 {[%clk 0:00:14]} 0-1


[Site "https://www.chess.com"]